bitfinex-derivatives/quotes_ETHF0:USTF0_20250428
["timestamp","ask_amount","ask_price","bid_price","bid_amount"]
[1745798401836,1.6028,1792.1,1792.0,1.6659]
[1745798404049,2.71845,1792.1,1792.0,2.78161]
[1745798405041,2.71845,1792.1,1792.0,1.6659]
[1745798405246,11.89133,1792.2,1792.0,1.11567]
[1745798405536,17.47033,1792.2,1792.1,1.6651]
[1745798405737,19.11853,1792.2,1792.1,1.6651]
[1745798406040,13.53953,1792.2,1792.1,1.6651]
[1745798406241,1.1157,1792.1,1792.0,1.11571]
[1745798406537,1.6482,1792.1,1792.0,1.11571]
[1745798406737,2.76385,1792.1,1792.0,2.78081]
[1745798407442,1.6482,1792.1,1792.0,2.78081]
[1745798408646,2.76385,1792.1,1792.0,2.78081]
[1745798409147,10.7757,1792.2,1792.1,1.11565]
[1745798409538,1.6799,1792.2,1792.1,1.93935]
[1745798410147,2.79548,1792.2,1792.1,0.8237]
[1745798410444,2.79548,1792.2,1792.1,2.4998]
[1745798412345,2.79548,1792.2,1792.1,3.61545]
[1745798412545,1.11557,1792.3,1792.1,3.61545]
[1745798412750,1.11557,1792.3,1792.2,1.5935]
[1745798412940,2.80107,1792.3,1792.2,1.5935]
[1745798414044,6.00887,1792.3,1792.2,1.5935]
[1745798416547,1.11558,1792.2,1792.1,0.8237]
[1745798416749,4.8933,1792.3,1791.9,2.78937]
[1745798416750,1.11571,1792.0,1791.9,2.78937]
[1745798417049,1.11577,1791.9,1791.8,0.8076]
[1745798417245,1.1159,1791.7,1791.6,1.6736]
[1745798417450,1.667,1791.8,1791.6,1.6736]
[1745798417747,1.667,1791.8,1791.7,1.1159]
[1745798417946,9.485,1792.0,1791.6,4.8814]
[1745798418149,5.888,1792.0,1791.9,1.11577]
[1745798418349,20.50245811,1793.7,1792.7,3.2078]
[1745798418541,20.50245811,1793.7,1793.6,4.32251]
[1745798418542,14.40241811,1793.7,1793.6,4.32251]
[1745798418742,1.6132,1794.7,1794.3,1.11428]
[1745798419063,1.6132,1794.7,1794.3,4.32208]
[1745798419247,1.6132,1794.7,1794.3,8.12408]
[1745798419948,27.36631793,1794.4,1794.3,0.5942]
[1745798420251,27.81041808,1794.4,1793.6,3.4865]
[1745798420445,3.2078,1794.1,1793.6,4.60119]
[1745798420641,1.6363,1794.0,1793.7,1.11462]
[1745798421547,1.6363,1794.0,1793.8,1.11458]
[1745798421749,29.64311793,1794.4,1793.8,3.2078]
[1745798421950,1.6363,1794.2,1794.0,4.32223]
[1745798422148,1.6363,1794.2,1794.1,1.1144]
[1745798422346,1.6363,1794.2,1794.0,4.32224]
[1745798422744,1.6363,1794.2,1794.0,3.2078]
[1745798423047,9.8441,1794.2,1793.6,0.2787]
[1745798423247,0.8158,1794.1,1793.6,0.2787]
[1745798423447,5.7043,1794.0,1793.9,1.11453]
[1745798423646,5.7043,1794.0,1793.7,3.2078]
[1745798423854,5.7043,1794.0,1793.8,1.11453]
[1745798424057,5.7043,1794.0,1793.9,1.11453]
[1745798424249,9.5063,1794.0,1793.8,1.11457]
[1745798424450,9.5063,1794.0,1793.7,4.32242]
[1745798424651,9.5063,1794.0,1793.9,1.11453]
[1745798425351,3.802,1794.0,1793.9,4.32233]
[1745798426157,5.7888,1794.3,1794.1,1.11437]
[1745798426357,5.7888,1794.3,1794.2,1.11434]
[1745798427257,9.5898,1794.3,1794.2,1.11434]
[1745798427958,5.5228,1794.3,1793.9,4.922]
[1745798428256,1.7208,1794.3,1794.2,1.11434]
[1745798428851,5.7878,1794.3,1794.2,1.11434]
[1745798429055,5.7878,1794.3,1793.9,4.922]
[1745798429255,5.5228,1794.3,1794.1,1.1144]
[1745798429454,1.11442,1794.1,1793.7,3.2078]
[1745798429649,2.439,1794.0,1793.8,1.11459]
[1745798430355,6.241,1794.0,1793.8,1.11459]
[1745798430559,6.241,1794.0,1793.8,3.20699]
[1745798431057,7.35547,1794.0,1793.8,3.20699]
[1745798431456,7.35547,1794.0,1793.8,3.51999]
[1745798431457,6.241,1794.0,1793.8,3.51999]
[1745798432556,6.241,1794.0,1793.8,3.51998]
[1745798434064,6.241,1794.0,1793.8,3.58478]
[1745798434556,6.241,1794.0,1793.8,5.47518]
[1745798434960,6.241,1794.0,1793.9,1.11453]
[1745798436358,1.11453,1793.9,1793.8,4.8561]
[1745798436562,10.08933,1793.9,1793.8,4.8561]
[1745798436857,15.17932086,1793.9,1793.8,1.423]
[1745798437061,15.17932086,1793.9,1793.8,0.1169]
[1745798437259,18.98132086,1793.9,1793.8,0.1169]
[1745798438060,14.91432086,1793.9,1793.8,0.1169]
[1745798438362,8.7098,1793.9,1793.7,2.05774]
[1745798438663,5.18159,1793.8,1793.7,0.9431]
[1745798438858,5.767,1793.8,1793.7,0.9431]
[1745798439065,9.569,1793.8,1793.7,0.9431]
[1745798439362,10.68359,1793.8,1793.7,0.9431]
[1745798439562,9.569,1793.8,1793.7,2.05775]
[1745798439863,9.569,1793.8,1793.7,1.11465]
[1745798440062,10.6836,1793.8,1793.6,3.51957]
[1745798440261,9.569,1793.8,1793.7,1.11465]
[1745798440766,10.68359,1793.8,1793.6,3.51958]
[1745798440969,9.569,1793.8,1793.7,1.11465]
[1745798441267,9.569,1793.8,1793.6,2.4049]
[1745798441463,4.32245,1793.7,1793.6,2.4049]
[1745798441670,6.02865,1793.7,1793.6,2.4049]
[1745798441869,11.11864835,1793.7,1793.6,2.4049]
[1745798442068,14.92064835,1793.7,1793.6,0.3129]
[1745798442265,14.83065,1793.7,1793.6,0.3129]
[1745798442464,14.92065493,1793.7,1793.6,0.3129]
[1745798442765,14.92065493,1793.7,1793.5,0.9432]
[1745798442766,1.11471,1793.6,1793.5,0.9432]
[1745798442967,4.52091,1793.6,1793.5,0.9432]
[1745798443269,13.32291,1793.6,1793.5,0.9432]
[1745798443571,13.41291707,1793.6,1793.5,0.9432]
[1745798445666,1.11478,1793.5,1793.4,2.4052]
[1745798445971,11.90959408,1793.5,1793.4,1.09025]
[1745798446171,2.7873,1793.3,1792.7,1.11527]
[1745798446363,4.32299,1792.9,1792.6,1.1153]
[1745798446668,4.32299,1792.9,1792.7,1.11527]
[1745798446669,5.676,1792.8,1792.7,1.11527]
[1745798447261,9.478,1792.8,1792.7,1.11527]
[1745798448270,5.676,1792.8,1792.7,1.11527]
[1745798448770,4.0012,1793.1,1793.0,1.11509]
[1745798448971,1.7324,1793.1,1793.0,1.11509]
[1745798449170,0.7934,1793.4,1793.3,1.1149]
[1745798449470,3.2078,1793.5,1793.4,1.11484]
[1745798449667,7.3228,1793.5,1793.4,1.11484]
[1745798449974,7.3228,1793.5,1793.3,1.11486]
[1745798450160,11.1248,1793.5,1793.3,1.11486]
[1745798450363,11.1248,1793.5,1793.2,1.11492]
[1745798450665,1.7324,1793.4,1793.2,2.80215]
[1745798451073,2.84728,1793.4,1793.2,1.6872]
[1745798451275,5.5344,1793.4,1793.1,3.2078]
[1745798451467,1.11492,1793.3,1793.1,4.32281]
[1745798451669,5.7627,1793.2,1793.0,0.8473]
[1745798451870,1.11506,1793.1,1792.9,0.9435]
[1745798452068,1.6477,1793.0,1792.9,0.9435]
[1745798452572,1.6477,1793.0,1792.8,5.98456]
[1745798453175,1.6477,1793.0,1792.9,1.11515]
[1745798453977,1.6477,1793.0,1792.8,5.98458]
[1745798454177,5.7627,1793.0,1792.8,5.98458]
[1745798454478,6.87782,1793.0,1792.8,2.77678]
[1745798454675,1.11515,1792.9,1792.8,1.6616]
[1745798454867,1.6524,1792.9,1792.8,2.77681]
[1745798455565,2.76755,1792.9,1792.8,1.6616]
[1745798455767,2.76755,1792.9,1792.7,1.91193]
[1745798455976,2.76755,1792.9,1792.7,1.7403]
[1745798455977,4.8602,1792.9,1792.7,1.7403]
[1745798456175,4.8602,1792.9,1792.7,0.9436]
[1745798456677,1.11521,1792.8,1792.7,0.9436]
[1745798456876,2.76761,1792.8,1792.7,0.9436]
[1745798457474,7.76761,1792.8,1792.7,0.9436]
[1745798457678,8.7113603,1792.8,1792.7,0.9436]
[1745798457871,1.11558,1792.2,1792.1,2.5306]
[1745798458573,2.69428,1792.2,1792.1,2.5306]
[1745798458778,2.69428,1792.2,1792.1,0.8153]
[1745798459275,1.5787,1792.2,1792.1,0.8153]
[1745798459670,1.5787,1792.2,1791.9,1.8326]
[1745798459872,2.69434,1792.2,1791.9,2.94834]
[1745798460069,4.32348,1792.1,1791.9,1.8326]
[1745798460380,5.8226,1792.0,1791.9,1.8326]
[1745798460577,5.8226,1792.0,1791.9,1.7153]
[1745798460778,5.8226,1792.0,1791.8,0.8699]
[1745798460779,1.11577,1791.9,1791.8,0.8699]
[1745798461080,2.82237,1791.9,1791.8,0.8699]
[1745798461279,5.8226,1791.9,1791.8,1.98573]
[1745798461470,5.8226,1791.9,1791.8,3.72153]
[1745798461782,1.7066,1791.9,1791.8,6.92933]
[1745798461980,4.116,1792.0,1791.9,1.11577]
[1745798462181,4.116,1792.0,1791.9,6.65357]
[1745798468479,4.116,1792.0,1791.9,3.802]
[1745798468480,8.43951,1792.0,1791.9,3.802]
[1745798469078,10.10011,1792.0,1791.9,3.802]
[1745798469386,1.11586,1791.8,1791.6,1.7729]
[1745798469585,1.6577,1791.7,1791.6,1.7729]
[1745798469790,5.7757,1791.7,1791.6,2.88886]
[1745798472296,5.7757,1791.7,1791.6,1.7729]
[1745798472485,5.7757,1791.7,1791.6,2.88886]
[1745798472784,5.7757,1791.7,1791.6,1.23346]
[1745798473289,10.0994,1791.7,1791.6,0.1175]
[1745798473494,16.7575,1791.7,1791.6,0.1175]
[1745798473886,11.7575,1791.7,1791.6,0.1175]
[1745798474090,1.11596,1791.6,1791.5,3.802]
[1745798474290,1.11605,1791.5,1791.2,2.74676]
[1745798474491,5.744,1791.4,1791.2,2.74676]
[1745798474704,5.744,1791.4,1791.2,2.88626]
[1745798475197,6.86009,1791.4,1791.2,6.80586]
[1745798476593,5.744,1791.4,1791.3,1.11615]
[1745798476900,4.32359,1791.9,1791.6,1.11596]
[1745798477198,5.8577,1791.8,1791.6,1.11596]
[1745798477600,6.97354,1791.8,1791.5,5.76107]
[1745798477790,5.8577,1791.8,1791.5,5.76107]
[1745798477992,4.119,1791.7,1791.5,5.76107]
[1745798478191,1.7387,1791.6,1791.5,4.6451]
[1745798478388,2.85466,1791.6,1791.5,3.802]
[1745798478801,1.7387,1791.6,1791.5,3.802]
[1745798478995,2.85466,1791.6,1791.5,3.802]
[1745798479202,6.88166,1791.6,1791.5,3.802]
[1745798480404,5.7657,1791.6,1791.5,4.91802]
[1745798480605,5.7657,1791.6,1791.5,3.802]
[1745798480904,6.88166,1791.6,1791.5,3.802]
[1745798481807,7.4268,1791.6,1791.5,3.802]
[1745798482102,5.7657,1791.6,1791.5,4.91802]
[1745798482307,5.7657,1791.6,1791.5,3.802]
[1745798482509,5.7657,1791.6,1791.5,4.91802]
[1745798482811,5.7657,1791.6,1791.5,3.802]
[1745798483110,6.88166,1791.6,1791.5,3.802]
[1745798483313,8.49506,1791.6,1791.5,3.802]
[1745798483811,13.49506,1791.6,1791.5,3.802]
[1745798484310,1.11615,1791.3,1791.2,0.2571]
[1745798484511,5.24215,1791.3,1791.2,0.2571]
[1745798485210,5.24215,1791.3,1791.2,4.0591]
[1745798485815,4.126,1791.3,1791.2,4.0591]
[1745798486010,5.24215,1791.3,1791.2,4.0591]
[1745798487815,5.24215,1791.3,1791.2,3.9196]
[1745798490111,5.24215,1791.3,1791.2,0.1176]
[1745798491216,5.24215,1791.3,1791.2,3.9196]
[1745798492215,8.44995,1791.3,1791.2,3.9196]
[1745798494621,8.44995,1791.3,1791.2,3.4006]
[1745798495219,1.11627,1791.1,1791.0,0.1395]
[1745798495418,4.32407,1791.1,1791.0,0.1395]
[1745798495915,10.99147,1791.1,1791.0,0.1395]
[1745798496322,1.11648,1790.8,1790.5,4.9168]
[1745798496526,4.127,1790.7,1790.6,3.3228]
[1745798497521,5.24352,1790.7,1790.6,3.3228]
[1745798497722,1.11658,1790.6,1790.5,3.9416]
[1745798497925,3.64048,1790.6,1790.5,3.9416]
[1745798498117,4.45908,1790.6,1790.5,3.9416]
[1745798499119,4.55808,1790.6,1790.5,3.9416]
[1745798500322,4.55808,1790.6,1790.5,3.802]
[1745798501722,9.55808,1790.6,1790.5,3.802]
[1745798502114,9.6481637,1790.6,1790.5,2.42973]
[1745798502317,9.6481637,1790.6,1790.5,0.02934]
[1745798502523,1.11664,1790.5,1790.4,1e-05]
[1745798502824,6.0296237,1790.5,1790.4,1e-05]
[1745798503030,11.0296237,1790.5,1790.4,1e-05]
[1745798503217,6.0296237,1790.5,1790.4,1e-05]
[1745798503412,9.96854,1790.5,1790.4,1e-05]
[1745798504123,9.96854,1790.5,1790.4,3.80201]
[1745798504420,5.93954,1790.5,1790.4,3.80201]
[1745798504918,8.8519,1790.5,1790.4,3.80201]
[1745798505124,9.96854,1790.5,1790.4,3.80201]
[1745798505718,3.2078,1790.5,1790.4,3.80201]
[1745798505924,4.029,1790.8,1790.5,1.1166]
[1745798506125,5.14547,1790.8,1790.6,1.6236]
[1745798506323,5.14547,1790.8,1790.7,0.8191]
[1745798507125,5.14547,1790.8,1790.7,4.6211]
[1745798507724,2.78123,1790.9,1790.7,4.6211]
[1745798507924,2.78123,1790.9,1790.7,6.2447]
[1745798508119,5.14546,1790.8,1790.7,6.2447]
[1745798508314,4.029,1790.8,1790.7,6.2447]
[1745798508519,2.79057,1791.2,1790.7,6.2447]
[1745798508520,3.2078,1791.2,1790.7,6.2447]
[1745798508721,6.81009,1791.1,1790.8,4.32423]
[1745798508921,6.81009,1791.1,1790.9,1.6019]
[1745798509224,1.11633,1791.0,1790.9,5.4039]
[1745798509424,2.85653,1791.0,1790.9,5.4039]
[1745798510420,1.7402,1791.0,1790.9,5.4039]
[1745798510828,2.85653,1791.0,1790.9,5.4039]
[1745798511736,6.80253,1791.0,1790.9,5.4039]
[1745798512837,5.6862,1791.0,1790.9,5.4039]
[1745798513330,6.80253,1791.0,1790.9,5.4039]
[1745798514428,5.06233,1791.0,1790.9,5.4039]
[1745798515239,4.8466,1791.2,1790.9,5.4039]
[1745798515428,8.7926,1791.2,1790.9,6.52027]
[1745798515733,1.1163,1791.1,1790.9,6.52029]
[1745798515936,8.7926,1791.2,1791.0,1.11632]
[1745798516133,9.90881,1791.2,1791.1,0.7882]
[1745798519036,1.11627,1791.1,1791.0,3.9415]
[1745798519235,2.79047,1791.1,1791.0,3.9415]
[1745798519436,3.65587,1791.1,1791.0,3.9415]
[1745798520844,1.6742,1791.1,1791.0,3.9415]
[1745798521032,3.945,1791.1,1791.0,4.8123]
[1745798521338,1.11627,1791.1,1791.0,4.8123]
[1745798521540,6.76897,1791.1,1791.0,4.8123]
[1745798523329,6.76897,1791.1,1791.0,6.4828]
[1745798523535,5.6527,1791.1,1791.0,6.4828]
[1745798523737,6.76897,1791.1,1791.0,6.4828]
[1745798524138,5.6527,1791.1,1791.0,6.4828]
[1745798524346,6.76430342,1791.1,1791.0,6.4828]
[1745798524644,5.06127,1791.1,1791.0,6.4828]
[1745798525938,5.06127,1791.1,1791.0,4.8123]
[1745798526135,5.06127,1791.1,1791.0,3.9415]
[1745798527438,6.67347,1791.1,1791.0,3.9415]
[1745798539054,6.67347,1791.1,1791.0,3.802]
[1745798539652,2.72847,1791.1,1791.0,8.802]
[1745798539949,3.945,1791.3,1791.0,15.59851]
[1745798540145,1.11621,1791.2,1791.1,2.5427]
[1745798540351,3.945,1791.3,1791.1,2.5427]
[1745798540553,5.06115,1791.3,1791.2,1.6738]
[1745798540947,1.11621,1791.2,1791.1,0.8689]
[1745798541356,1.11627,1791.1,1791.0,2.4724]
[1745798542048,2.80407,1791.1,1791.0,2.4724]
[1745798542247,2.80407,1791.1,1791.0,6.2744]
[1745798547062,6.01187,1791.1,1791.0,2.55656]
[1745798547355,6.01187,1791.1,1791.0,0.89003]
[1745798547356,6.10201027,1791.1,1791.0,0.89003]
[1745798547559,6.10201027,1791.1,1790.9,0.4186]
[1745798547560,1.11658,1790.6,1790.5,0.835]
[1745798547760,4.96958,1790.6,1790.5,0.835]
[1745798548258,3.70476,1790.7,1790.5,4.637]
[1745798548458,6.69396,1790.7,1790.5,6.373]
[1745798548757,6.69396,1790.7,1790.6,2.5627]
[1745798551154,1.11656,1790.7,1790.6,2.5627]
[1745798553064,1.11656,1790.7,1790.6,5.7705]
[1745798554260,1.5931,1790.9,1790.6,10.7705]
[1745798554466,3.853,1791.0,1790.8,3.2078]
[1745798554667,4.96936,1791.0,1790.9,3.2372]
[1745798555262,4.96936,1791.0,1790.9,7.0392]
[1745798555469,4.96936,1791.0,1790.9,4.6039]
[1745798556064,8.17716,1791.0,1790.9,4.6039]
[1745798556758,4.96936,1791.0,1790.9,4.6039]
[1745798557258,8.17716,1791.0,1790.9,3.802]
[1745798557461,4.96936,1791.0,1790.9,3.802]
[1745798558064,8.17716,1791.0,1790.9,3.802]
[1745798559166,13.26727821,1791.0,1790.9,1.32314]
[1745798559466,13.26727821,1791.0,1790.9,0.15488]
[1745798559664,9.41427821,1791.0,1790.9,0.15488]
[1745798559860,8.26727607,1791.0,1790.9,0.15488]
[1745798560058,8.17716,1791.0,1790.9,0.15488]
[1745798561769,8.26727789,1791.0,1790.9,0.15488]
[1745798561962,9.09687789,1791.0,1790.9,0.15488]
[1745798562463,5.24387789,1791.0,1790.9,0.15488]
[1745798562764,3.853,1791.0,1790.9,3.36268]
[1745798562963,4.96933,1791.0,1790.9,0.15488]
[1745798563867,1.11625,1791.2,1790.9,7.92197]
[1745798564070,3.853,1791.2,1791.0,0.8257]
[1745798564273,1.11623,1791.2,1791.1,1.6507]
[1745798564770,2.76149,1791.3,1791.1,1.6507]
[1745798564966,6.61449,1791.3,1791.1,1.6507]
[1745798565162,2.76149,1791.3,1791.2,0.8647]
[1745798565378,1.11611,1791.4,1791.2,0.8647]
[1745798565574,1.11613,1791.4,1791.3,1.6507]
[1745798566168,1.11613,1791.4,1791.3,5.4527]
[1745798566663,2.76136,1791.5,1791.3,5.4527]
[1745798566874,3.853,1791.6,1791.4,3.57937]
[1745798567062,3.853,1791.6,1791.5,4.8634]
[1745798567264,1.11587,1791.8,1791.5,5.9794]
[1745798567467,1.1159,1791.7,1791.6,2.5203]
[1745798567667,1.11602,1791.5,1791.4,4.6097]
[1745798567971,1.7074,1791.6,1791.4,4.6097]
[1745798568173,2.82339,1791.6,1791.4,6.2653]
[1745798568373,1.7074,1791.6,1791.5,1.6556]
[1745798568568,3.853,1791.7,1791.5,4.8634]
[1745798568870,1.1159,1791.7,1791.6,0.8437]
[1745798569058,1.1159,1791.7,1791.6,2.4993]
[1745798570163,2.7098,1791.7,1791.6,2.4993]
[1745798570768,2.7098,1791.7,1791.6,0.8437]
[1745798572270,1.5939,1791.7,1791.6,0.8437]
[1745798572467,1.5939,1791.7,1791.6,2.4356]
[1745798572969,2.7098,1791.7,1791.6,2.4356]
[1745798573164,1.5939,1791.7,1791.6,3.55156]
[1745798573470,4.93379,1791.9,1791.6,3.55151]
[1745798573660,6.52629,1791.9,1791.7,1.5982]
[1745798573866,6.52629,1791.9,1791.8,0.7845]
[1745798574063,3.2078,1792.0,1791.8,0.7845]
[1745798574369,1.5925,1792.2,1792.0,1.11569]
[1745798574563,1.5925,1792.2,1792.1,1.5982]
[1745798574763,2.70808,1792.2,1792.1,1.5982]
[1745798576573,2.70808,1792.2,1792.0,7.8593]
[1745798576773,1.6386,1792.1,1792.0,9.4722]
[1745798577670,4.0707,1792.3,1792.1,1.11561]
[1745798577870,3.818,1792.4,1792.3,1.11551]
[1745798578067,3.61024,1792.5,1792.2,5.11894]
[1745798578371,7.42824,1792.5,1792.3,1.6129]
[1745798578576,1.6386,1792.4,1792.3,1.6129]
[1745798578777,2.75406,1792.4,1792.3,1.6129]
[1745798579274,1.6386,1792.4,1792.3,5.4149]
[1745798579675,4.93242,1792.5,1792.3,6.53042]
[1745798579873,1.7295,1792.5,1792.4,3.59406]
[1745798580078,3.817,1792.6,1792.4,5.6864]
[1745798580381,6.66181,1792.7,1792.4,10.60381]
[1745798580576,2.84481,1792.7,1792.5,1.6847]
[1745798580881,1.11534,1792.6,1792.5,1.6847]
[1745798581072,2.84484,1792.6,1792.5,5.4867]
[1745798582175,2.84484,1792.6,1792.5,3.802]
[1745798582374,7.84484,1792.6,1792.5,3.802]
[1745798582873,7.93489959,1792.6,1792.5,3.802]
[1745798583274,1.11553,1792.3,1792.1,8.4181]
[1745798583775,1.6528,1792.2,1792.1,8.4181]
[1745798585083,2.76838,1792.2,1792.1,8.4181]
[1745798585386,1.11565,1792.1,1792.0,7.9446]
[1745798585589,2.78625,1792.1,1792.0,7.9446]
[1745798586184,1.6706,1792.1,1792.0,7.9446]
[1745798586683,2.78625,1792.1,1792.0,7.9446]
[1745798586879,2.78625,1792.1,1792.0,9.6653]
[1745798587684,2.78625,1792.1,1792.0,7.9446]
[1745798588983,2.78625,1792.1,1792.0,3.9415]
[1745798594682,1.6706,1792.1,1792.0,3.9415]
[1745798594885,2.78625,1792.1,1792.0,3.9415]
[1745798596589,2.78625,1792.1,1792.0,3.96109214]
[1745798597182,14.81105,1792.1,1792.0,3.96109214]
[1745798597483,14.81105,1792.1,1792.0,3.82159214]
[1745798597484,14.90111973,1792.1,1792.0,3.82159214]
[1745798597673,15.20202672,1792.1,1792.0,3.82159214]
[1745798598190,15.20202672,1792.1,1792.0,0.01959214]
[1745798598687,15.20202672,1792.1,1792.0,2.14e-06]
[1745798599387,15.11195699,1792.1,1792.0,2.14e-06]
[1745798599591,15.20199426,1792.1,1792.0,2.14e-06]
[1745798601089,15.20200965,1792.1,1792.0,2.14e-06]
[1745798602688,15.20198916,1792.1,1792.0,2.14e-06]
[1745798603593,9.84708217,1792.1,1792.0,2.14e-06]
[1745798604095,9.84705557,1792.1,1792.0,3.80200214]
[1745798604698,6.54925,1792.1,1792.0,3.80200214]
[1745798604889,6.54925,1792.1,1792.0,6.24880214]
[1745798605895,2.78625,1792.1,1792.0,6.24880214]
[1745798610197,5.99405,1792.1,1792.0,3.80200214]
[1745798610403,6.82815,1792.1,1792.0,2.28428214]
[1745798610587,1.11571,1792.0,1791.9,2.14e-06]
[1745798610792,1.11583,1791.8,1791.7,0.1395]
[1745798610993,4.87883,1791.8,1791.7,0.1395]
[1745798611291,4.87883,1791.8,1791.7,3.9415]
[1745798611688,5.66663,1791.8,1791.7,3.9415]
[1745798612092,7.30503,1791.8,1791.7,3.9415]
[1745798613103,12.30503,1791.8,1791.7,1.89468]
[1745798613302,1.11621,1791.2,1791.1,3.2078]
[1745798613800,1.11621,1791.2,1791.1,8.2078]
[1745798614101,1.11618,1791.3,1791.1,8.2078]
[1745798614292,1.11621,1791.2,1791.1,3.2078]
[1745798614796,1.11619,1791.3,1791.1,3.2078]
[1745798614992,1.11621,1791.2,1791.1,3.2078]
[1745798615499,1.11627,1791.1,1791.0,5.4567]
[1745798617301,1.11627,1791.1,1791.0,10.4567]
[1745798617604,1.11625,1791.2,1791.0,11.57303]
[1745798617803,1.11625,1791.2,1791.1,3.2078]
[1745798618500,1.11625,1791.2,1791.1,8.2078]
[1745798620005,1.11621,1791.2,1791.1,3.2078]
[1745798620506,2.80219,1791.3,1791.1,3.2078]
[1745798620707,1.686,1791.3,1791.1,3.2078]
[1745798620905,2.80218,1791.3,1791.1,3.2078]
[1745798621106,1.11621,1791.2,1791.1,3.2078]
[1745798623509,2.72091,1791.2,1791.1,3.2078]
[1745798624808,2.72091,1791.2,1791.0,5.4567]
[1745798625010,1.6447,1791.1,1791.0,5.4567]
[1745798625811,2.76097,1791.1,1791.0,5.4567]
[1745798626104,2.76097,1791.1,1791.0,3.802]
[1745798626403,6.52497,1791.1,1791.0,3.802]
[1745798627210,1.11627,1791.1,1791.0,3.802]
[1745798627704,2.80707,1791.1,1791.0,3.802]
[1745798628711,7.89711746,1791.1,1791.0,3.802]
[1745798628913,7.89711799,1791.1,1791.0,3.802]
[1745798629110,7.89711799,1791.1,1790.7,0.8282]
[1745798629111,1.11639,1790.9,1790.8,3.802]
[1745798629307,3.764,1790.9,1790.8,3.802]
[1745798629608,4.88039,1790.9,1790.8,4.6039]
[1745798630112,3.2078,1791.2,1790.9,1.11633]
[1745798630313,7.052,1791.3,1790.9,4.32415]
[1745798630608,7.052,1791.3,1791.0,1.7155]
[1745798630812,2.76255,1791.2,1791.0,1.7155]
[1745798631012,2.76257,1791.1,1791.0,1.7155]
[1745798631213,2.76257,1791.1,1791.0,5.5175]
[1745798632318,1.11624,1791.2,1791.0,5.5175]
[1745798632613,1.11621,1791.2,1791.1,0.8642]
[1745798632915,2.76251,1791.2,1791.1,0.8642]
[1745798634726,1.6463,1791.2,1791.1,0.8642]
[1745798635025,1.6463,1791.2,1791.1,2.4771]
[1745798635228,2.76251,1791.2,1791.1,3.2953]
[1745798638829,1.6463,1791.2,1791.1,3.2953]
[1745798639225,2.76251,1791.2,1791.1,3.2953]
[1745798639629,1.6463,1791.2,1791.1,3.2953]
[1745798639924,3.2078,1791.4,1791.1,3.2953]
[1745798640131,3.758,1791.4,1791.2,2.74329]
[1745798640432,3.65937,1791.5,1791.1,4.8902]
[1745798640433,1.11621,1791.2,1791.1,4.8902]
[1745798640625,1.11621,1791.2,1791.1,6.5173]
[1745798640931,1.11617,1791.3,1791.1,6.5173]
[1745798641230,1.7325,1791.3,1791.1,6.5173]
[1745798641530,1.11621,1791.2,1791.1,6.5173]
[1745798641730,1.11621,1791.2,1791.1,3.3095]
[1745798642127,2.84871,1791.2,1791.1,3.3095]
[1745798642322,1.7325,1791.2,1791.1,3.3095]
[1745798642519,2.84871,1791.2,1791.1,3.3095]
[1745798644029,2.84871,1791.2,1791.1,0.8642]
[1745798644235,1.11627,1791.1,1791.0,9.65]
[1745798644534,4.47907,1791.1,1791.0,9.65]
[1745798653640,3.2078,1791.4,1791.0,14.65]
[1745798653838,1.6694,1791.4,1791.2,1.11618]
[1745798654142,3.2078,1791.6,1791.2,1.11618]
[1745798654143,1.11606,1791.5,1791.3,0.8301]
[1745798654440,2.7854,1791.6,1791.4,1.6065]
[1745798654634,6.5434,1791.6,1791.5,0.8334]
[1745798655333,6.5434,1791.6,1791.5,4.6354]
[1745798656837,1.11594,1791.7,1791.5,4.6354]
[1745798657041,2.75839,1791.8,1791.6,1.6793]
[1745798657240,2.75833,1791.8,1791.7,0.8581]
[1745798658241,2.75833,1791.8,1791.7,4.6601]
[1745798660136,1.11581,1791.9,1791.7,4.6601]
[1745798660336,1.11583,1791.8,1791.7,4.6601]
[1745798661536,2.69943,1791.8,1791.7,4.6601]
[1745798662342,1.5836,1791.8,1791.7,4.6601]
[1745798662642,3.758,1791.9,1791.7,7.8679]
[1745798662842,2.69935,1792.0,1791.7,8.98378]
[1745798663034,2.69935,1792.0,1791.8,0.7914]
[1745798663931,1.5836,1792.0,1791.8,1.90721]
[1745798664137,0.8295,1792.2,1791.9,6.96376]
[1745798664138,1.11562,1792.2,1791.9,6.96376]
[1745798664343,6.9658,1792.3,1791.9,10.17157]
[1745798664344,1.11566,1792.1,1791.9,10.17157]
[1745798664643,6.9658,1792.3,1791.9,9.0558]
[1745798664837,1.6407,1792.2,1791.9,9.0558]
[1745798665142,1.11571,1792.0,1791.9,12.8578]
[1745798674745,2.75011,1792.0,1791.9,12.8578]
[1745798675247,1.11566,1792.1,1791.9,13.97352]
[1745798676853,1.11571,1792.0,1791.9,12.8578]
[1745798677845,2.78681,1792.0,1791.9,12.8578]
[1745798678150,2.78681,1792.0,1791.9,9.65]
[1745798678344,11.50281,1792.0,1791.9,9.65]
[1745798678644,1.11577,1791.9,1791.8,2.2812]
[1745798678853,1.11608,1791.4,1791.3,4.70107]
[1745798679652,1.94788,1791.4,1791.3,4.70107]